fUST/lending_fUST_20260118
["ID","MTS","AMOUNT","RATE_DAILY","PERIOD"]
[402449628,1768679471312,-500.0,0.00017534,3]
[402449630,1768679471322,-500.0,0.00017534,3]
[402449632,1768679471331,-1377.29,0.00017534,3]
[402449634,1768679471341,-611.27,0.00017534,3]
[402449636,1768679471350,-500.0,0.00017534,3]
[402449638,1768679471359,-566.4,0.00017534,3]
[402449640,1768679471368,-500.0,0.00017534,3]
[402449642,1768679471381,-500.0,0.00017534,3]
[402449644,1768679471391,-1322.2,0.00017534,3]
[402449646,1768679471400,-658.43,0.00017534,3]
[402449648,1768679471410,-305.36678079,0.00017534,3]
[402449650,1768679471419,-1008.67,0.00017534,3]
[402449652,1768679471429,-500.0,0.00017534,3]
[402449654,1768679471438,-1081.56,0.00017534,3]
[402449656,1768679471447,-500.0,0.00017534,3]
[402449658,1768679471456,-792.81,0.00017534,3]
[402449660,1768679471466,-500.0,0.00017534,3]
[402449662,1768679471476,-500.0,0.00017534,3]
[402449664,1768679471486,-308.42481472,0.00017534,3]
[402449671,1768679471545,-634.45,0.00017534,3]
[402449673,1768679471555,-1290.02,0.00017534,3]
[402449676,1768679471568,-500.0,0.00017534,3]
[402449677,1768679471578,-500.0,0.00017534,3]
[402449680,1768679471588,-500.0,0.00017534,3]
[402449682,1768679471598,-649.46,0.00017534,3]
[402449684,1768679471607,-629.85,0.00017534,3]
[402449686,1768679471617,-500.0,0.00017534,3]
[402449688,1768679471627,-1795.72,0.00017534,3]
[402449690,1768679471636,-500.0,0.00017534,3]
[402449692,1768679471645,-500.0,0.00017534,3]
[402449693,1768679471654,-511.27,0.00017534,3]
[402449695,1768679471664,-704.12,0.00017534,3]
[402449697,1768679471673,-500.0,0.00017534,3]
[402449699,1768679471682,-1121.71,0.00017534,3]
[402449700,1768679471692,-7250.78,0.00017534,3]
[402449701,1768679471701,-500.0,0.00017534,3]
[402449702,1768679471710,-500.0,0.00017534,3]
[402449703,1768679471719,-500.0,0.00017534,3]
[402449704,1768679471729,-911.63,0.00017534,3]
[402449705,1768679471739,-723.29,0.00017534,3]
[402449706,1768679471748,-500.0,0.00017534,3]
[402449707,1768679471757,-653.32,0.00017534,3]
[402449708,1768679471767,-500.0,0.00017534,3]
[402449709,1768679471776,-500.0,0.00017534,3]
[402449710,1768679471785,-1012.62,0.00017534,3]
[402449711,1768679471795,-655.23,0.00017534,3]
[402449712,1768679471804,-759.12,0.00017534,3]
[402449713,1768679471813,-874.59,0.00017534,3]
[402449714,1768679471823,-1773.96,0.00017534,3]
[402449715,1768679471832,-782.71,0.00017534,3]
[402449716,1768679471842,-900.31,0.00017534,3]
[402449717,1768679471851,-500.0,0.00017534,3]
[402449718,1768679471860,-500.0,0.00017534,3]
[402449719,1768679471869,-500.0,0.00017534,3]
[402449720,1768679471879,-500.0,0.00017534,3]
[402449721,1768679471888,-511.29,0.00017534,3]
[402449722,1768679471898,-848.01,0.00017534,3]
[402449723,1768679471907,-500.0,0.00017534,3]
[402449724,1768679471916,-205.70334836,0.00017534,3]
[402449725,1768679471925,-1511.46,0.00017534,3]
[402449726,1768679471934,-719.22,0.00017534,3]
[402449727,1768679471944,-795.56,0.00017534,3]
[402449728,1768679471953,-614.82090661,0.00017534,3]
[402449729,1768679471963,-515.67,0.00017534,3]
[402449730,1768679471972,-710.26,0.00017534,3]
[402449731,1768679471981,-500.0,0.00017534,3]
[402449732,1768679471991,-500.0,0.00017534,3]
[402449733,1768679472000,-500.0,0.00017534,3]
[402449734,1768679472010,-500.0,0.00017534,3]
[402449735,1768679472021,-1473.49,0.00017534,3]
[402449736,1768679472030,-1563.16,0.00017534,3]
[402449737,1768679472040,-500.0,0.00017534,3]
[402449738,1768679472049,-500.0,0.00017534,3]
[402449739,1768679472058,-500.0,0.00017534,3]
[402449740,1768679472068,-500.0,0.00017534,3]
[402449741,1768679472077,-3137.86,0.00017534,3]
[402449742,1768679472087,-1184.71,0.00017534,3]
[402449743,1768679472097,-1035.74,0.00017534,3]
[402449744,1768679472107,-500.0,0.00017534,3]
[402449745,1768679472117,-500.0,0.00017534,3]
[402449746,1768679472127,-680.48,0.00017534,3]
[402449747,1768679472136,-500.0,0.00017534,3]
[402449748,1768679472146,-500.0,0.00017534,3]
[402449749,1768679472156,-500.0,0.00017534,3]
[402449750,1768679472166,-1220.42,0.00017534,3]
[402449751,1768679472176,-500.0,0.00017534,3]
[402449752,1768679472186,-490.09113196,0.00017534,3]
[402449753,1768679472198,-500.0,0.00017534,3]
[402449754,1768679472208,-587.95,0.00017534,3]
[402449755,1768679472218,-738.3,0.00017534,3]
[402449756,1768679472228,-972.61,0.00017534,3]
[402449757,1768679472238,-500.0,0.00017534,3]
[402449758,1768679472253,-500.0,0.00017534,3]
[402449759,1768679472263,-932.18,0.00017534,3]
[402449760,1768679472273,-1068.39,0.00017534,3]
[402449761,1768679472292,-696.43,0.00017534,3]
[402449762,1768679472301,-823.6,0.00017534,3]
[402449763,1768679472310,-981.27,0.00017534,3]
[402449764,1768679472319,-500.0,0.00017534,3]
[402449765,1768679472331,-500.0,0.00017534,3]
[402449766,1768679472344,-500.0,0.00017534,3]
[402449767,1768679472353,-764.36,0.00017534,3]
[402449768,1768679472362,-1646.11,0.00017534,3]
[402449769,1768679472371,-640.0,0.00017534,3]
[402449770,1768679472380,-1443.1,0.00017534,3]
[402449771,1768679472389,-609.57,0.00017534,3]
[402449772,1768679472399,-1057.92,0.00017534,3]
[402449773,1768679472408,-960.29,0.00017534,3]
[402449774,1768679472418,-500.0,0.00017534,3]
[402449775,1768679472427,-500.0,0.00017534,3]
[402449776,1768679472436,-13777.2,0.00017534,3]
[402449777,1768679472444,-1418.84,0.00017534,3]
[402449778,1768679472453,-500.0,0.00017534,3]
[402449779,1768679472463,-500.0,0.00017534,3]
[402449780,1768679472472,-500.0,0.00017534,3]
[402449781,1768679472482,-1057.38,0.00017534,3]
[402449783,1768679472491,-842.34,0.00017534,3]
[402449785,1768679472500,-500.0,0.00017534,3]
[402449787,1768679472509,-500.0,0.00017534,3]
[402449789,1768679472518,-500.0,0.00017534,3]
[402449791,1768679472527,-500.0,0.00017534,3]
[402449792,1768679472537,-646.41,0.00017534,3]
[402449794,1768679472548,-1795.66,0.00017534,3]
[402449796,1768679472559,-1032.71,0.00017534,3]
[402449798,1768679472568,-633.31,0.00017534,3]
[402449800,1768679472578,-1068.17,0.00017534,3]
[402449803,1768679472588,-500.0,0.00017534,3]
[402449805,1768679472598,-552.62,0.00017534,3]
[402449806,1768679472606,-583.22605007,0.00017534,3]
[402449808,1768679472616,-500.0,0.00017534,3]
[402449810,1768679472625,-500.34885324,0.00017534,3]
[402449812,1768679472634,-1307.71,0.00017534,3]
[402449814,1768679472643,-500.0,0.00017534,3]
[402449816,1768679472653,-789.82,0.00017534,3]
[402449818,1768679472662,-500.0,0.00017534,3]
[402449820,1768679472671,-500.0,0.00017534,3]
[402449822,1768679472680,-1340.94,0.00017534,3]
[402449824,1768679472689,-1311.65,0.00017534,3]
[402449826,1768679472699,-500.0,0.00017534,3]
[402449828,1768679472708,-1232.14,0.00017534,3]
[402449830,1768679472717,-500.0,0.00017534,3]
[402449831,1768679472725,-1005.27,0.00017534,3]
[402449834,1768679472736,-765.27,0.00017534,3]
[402449836,1768679472746,-500.0,0.00017534,3]
[402449837,1768679472756,-2348.06,0.00017534,3]
[402449839,1768679472765,-517.36,0.00017534,3]
[402449841,1768679472773,-2776.89,0.00017534,3]
[402449843,1768679472783,-500.0,0.00017534,3]
[402449845,1768679472794,-1504.2,0.00017534,3]
[402449847,1768679472803,-500.0,0.00017534,3]
[402449849,1768679472813,-500.0,0.00017534,3]
[402449852,1768679472823,-500.0,0.00017534,2]
[402449854,1768679472832,-500.0,0.00017534,3]
[402449855,1768679472844,-500.0,0.00017534,3]
[402449857,1768679472855,-500.0,0.00017534,3]
[402449859,1768679472866,-500.0,0.00017534,3]
[402449861,1768679472875,-500.0,0.00017534,3]
[402449864,1768679472885,-648.09,0.00017534,3]
[402449866,1768679472895,-500.0,0.00017534,2]
[402449868,1768679472904,-500.0,0.00017534,3]
[402449869,1768679472913,-1152.08,0.00017534,3]
[402449872,1768679472924,-1273.97,0.00017534,3]
[402449874,1768679472933,-1266.1,0.00017534,3]
[402449876,1768679472942,-500.0,0.00017534,3]
[402449878,1768679472951,-500.0,0.00017534,3]
[402449880,1768679472961,-500.0,0.00017534,3]
[402449881,1768679472970,-156.77330136,0.00017534,2]
[402449882,1768679472979,-687.93,0.00017534,3]
[402449883,1768679472988,-500.0,0.00017534,3]
[402449884,1768679472998,-500.0,0.00017534,3]
[402449885,1768679473007,-532.35,0.00017534,3]
[402449886,1768679473017,-500.0,0.00017534,3]
[402449887,1768679473027,-500.0,0.00017534,3]
[402449888,1768679473037,-638.39,0.00017534,3]
[402449889,1768679473046,-500.0,0.00017534,3]
[402449890,1768679473055,-1194.29,0.00017534,3]
[402449892,1768679473065,-500.0,0.00017534,3]
[402449894,1768679473074,-500.0,0.00017534,3]
[402449896,1768679473083,-311.24128532,0.00017534,3]
[402449898,1768679473093,-500.0,0.00017534,3]
[402449900,1768679473102,-500.0,0.00017534,3]
[402449902,1768679473111,-507.79,0.00017534,3]
[402449904,1768679473121,-1199.46,0.00017534,3]
[402449906,1768679473131,-1113.02,0.00017534,3]
[402449908,1768679473141,-500.0,0.00017534,3]
[402449910,1768679473150,-500.0,0.00017534,3]
[402449912,1768679473162,-500.0,0.00017534,3]
[402449914,1768679473171,-32261.07,0.0001754,2]
[402449916,1768679473181,-478.75725327,0.0001754,2]
[402449918,1768679473191,-2312.83697232,0.0001754,2]
[402449920,1768679473200,-503.0,0.00017585,2]
[402449922,1768679473209,-503.0,0.00017586,2]
[402449924,1768679473218,-729.0,0.00017594,2]
[402449926,1768679473228,-2138.33066815,0.000176,2]
[402449928,1768679473237,-500.0,0.0001762,2]
[402449930,1768679473247,-151.0,0.00017669,2]
[402449932,1768679473258,-152.0,0.00017669,2]
[402449934,1768679473268,-152.0,0.00017669,2]
[402449936,1768679473278,-152.0,0.00017669,2]
[402449938,1768679473287,-152.0,0.00017669,2]
[402449940,1768679473297,-152.0,0.00017669,2]
[402449942,1768679473307,-152.0,0.00017669,2]
[402449944,1768679473317,-166.0,0.00017669,2]
[402449946,1768679473326,-166.0,0.00017669,2]
[402449948,1768679473335,-500.0,0.00017682,2]
[402449950,1768679473344,-778.0,0.000177,2]
[402449952,1768679473354,-729.0,0.00017798,2]
[402449954,1768679473362,-3000.0,0.00017798,7]
[402449956,1768679473371,-27378.95688365,0.000178,3]
[402449958,1768679473380,-500.0,0.00017808,2]
[402449960,1768679473390,-343.79172969,0.00017808,3]
[402449962,1768679473399,-500.0,0.00017808,3]
[402449964,1768679473408,-326.22,0.00017808,3]
[402449966,1768679473417,-500.0,0.00017808,3]
[402449968,1768679473427,-1139.03,0.00017808,3]
[402449970,1768679473436,-500.0,0.00017808,3]
[402449972,1768679473445,-500.0,0.00017808,3]
[402449974,1768679473454,-500.68,0.00017808,3]
[402449976,1768679473463,-500.0,0.00017808,3]
[402449978,1768679473472,-891.03,0.00017808,3]
[402449980,1768679473482,-500.0,0.00017808,3]
[402449982,1768679473492,-500.0,0.00017808,3]
[402449984,1768679473501,-500.0,0.00017808,3]
[402449986,1768679473511,-500.0,0.00017808,3]
[402449988,1768679473519,-500.0,0.00017808,3]
[402449990,1768679473528,-500.0,0.00017808,3]
[402449992,1768679473543,-198.0244908,0.00017808,3]
[402449994,1768679473562,-500.0,0.00017808,3]
[402449996,1768679473582,-500.0,0.00017808,3]
[402449998,1768679473592,-500.0,0.00017808,3]
[402450000,1768679473601,-500.0,0.00017808,3]
[402450002,1768679473610,-993.81,0.00017808,3]
[402450004,1768679473620,-1347.64,0.00017808,3]
[402450006,1768679473629,-696.42,0.00017808,3]
[402450008,1768679473637,-500.0,0.00017808,3]
[402450010,1768679473647,-633.62,0.00017808,3]
[402450012,1768679473656,-580.38717394,0.00017808,3]
[402450014,1768679473666,-500.0,0.00017808,3]
[402450016,1768679473675,-645.22,0.00017808,3]
[402450018,1768679473684,-390.74517255,0.00017808,3]
[402450020,1768679473694,-506.33,0.00017808,3]
[402450022,1768679473704,-500.0,0.00017808,3]
[402450023,1768679473713,-500.0,0.00017808,3]
[402450025,1768679473722,-500.0,0.00017808,3]
[402450027,1768679473732,-1262.56,0.00017808,3]
[402450029,1768679473741,-500.0,0.00017808,3]
[402450031,1768679473750,-500.0,0.00017808,3]
[402450034,1768679473760,-500.0,0.00017808,3]
[402450036,1768679473769,-500.0,0.00017808,3]
[402450038,1768679473778,-1321.04,0.00017808,3]
[402450040,1768679473787,-500.0,0.00017808,3]
[402450042,1768679473796,-682.86,0.00017808,3]
[402450044,1768679473805,-500.0,0.00017808,3]
[402450046,1768679473814,-500.0,0.00017808,3]
[402450048,1768679473823,-637.08,0.00017808,3]
[402450050,1768679473833,-796.7,0.00017808,3]
[402450052,1768679473842,-500.0,0.00017808,3]
[402450053,1768679473851,-679.17,0.00017808,3]
[402450055,1768679473860,-718.32,0.00017808,3]
[402450057,1768679473870,-568.80325365,0.00017808,3]
[402450060,1768679473879,-500.0,0.00017808,3]
[402450062,1768679473889,-500.0,0.00017808,3]
[402450064,1768679473898,-872.29,0.00017808,3]
[402450066,1768679473907,-561.82,0.00017808,3]
[402450068,1768679473916,-306.5416069,0.00017808,3]
[402450070,1768679473926,-500.0,0.00017808,3]
[402450072,1768679473935,-942.6,0.00017808,3]
[402450074,1768679473944,-187.97057605,0.00017808,3]
[402450076,1768679473953,-1254.55,0.00017808,3]
[402450078,1768679473962,-500.0,0.00017808,3]
[402450080,1768679473971,-500.0,0.00017808,3]
[402450081,1768679473980,-500.0,0.00017808,3]
[402450084,1768679473990,-656.32,0.00017808,3]
[402450086,1768679473999,-500.0,0.00017808,3]
[402450088,1768679474009,-500.0,0.00017808,3]
[402450090,1768679474018,-500.0,0.00017808,3]
[402450092,1768679474078,-500.0,0.00017808,3]
[402450094,1768679474087,-500.0,0.00017808,3]
[402450096,1768679474097,-797.42,0.00017808,3]
[402450098,1768679474107,-881.58,0.00017808,3]
[402450100,1768679474116,-1020.76,0.00017808,3]
[402450102,1768679474125,-570.20304143,0.00017808,3]
[402450104,1768679474135,-500.0,0.00017808,3]
[402450106,1768679474144,-500.0,0.00017808,3]
[402450108,1768679474153,-500.0,0.00017808,3]
[402450109,1768679474163,-1057.49,0.00017808,3]
[402450112,1768679474172,-1420.1,0.00017808,3]
[402450114,1768679474184,-884.75,0.00017808,3]
[402450115,1768679474194,-500.0,0.00017808,3]
[402450117,1768679474204,-500.0,0.00017808,3]
[402450120,1768679474214,-500.0,0.00017808,3]
[402450122,1768679474223,-847.44,0.00017808,3]
[402450123,1768679474234,-500.0,0.00017808,3]
[402450125,1768679474243,-500.0,0.00017808,3]
[402450128,1768679474257,-500.0,0.00017808,3]
[402450129,1768679474266,-1228.47,0.00017808,3]
[402450131,1768679474275,-500.0,0.00017808,3]
[402450133,1768679474284,-606.9,0.00017808,3]
[402450135,1768679474294,-500.0,0.00017808,3]
[402450137,1768679474303,-500.0,0.00017808,3]
[402450139,1768679474313,-736.96,0.00017808,3]
[402450141,1768679474322,-545.22,0.00017808,3]
[402450143,1768679474331,-727.09,0.00017808,3]
[402450145,1768679474340,-500.0,0.00017808,3]
[402450147,1768679474349,-1634.12,0.00017808,3]
[402450149,1768679474359,-595.35,0.00017808,3]
[402450151,1768679474368,-500.0,0.00017808,3]
[402450153,1768679474377,-500.0,0.00017808,3]
[402450155,1768679474386,-500.0,0.00017808,3]
[402450157,1768679474396,-500.0,0.00017808,3]
[402450159,1768679474405,-1317.95,0.00017808,3]
[402450161,1768679474414,-718.42,0.00017808,3]
[402450163,1768679474423,-500.0,0.00017808,3]
[402450165,1768679474432,-1449.09,0.00017808,3]
[402450167,1768679474441,-759.73,0.00017808,3]
[402450169,1768679474461,-500.0,0.00017808,3]
[402450171,1768679474470,-560.7285272,0.00017808,3]
[402450173,1768679474481,-500.0,0.00017808,3]
[402450175,1768679474490,-500.0,0.00017808,3]
[402450177,1768679474500,-1291.04,0.00017808,3]
[402450179,1768679474510,-623.12,0.00017808,3]
[402450181,1768679474518,-151.0,0.00017808,2]
[402450183,1768679474528,-631.17,0.00017808,3]
[402450185,1768679474537,-151.0,0.00017808,2]
[402450187,1768679474546,-232.64036101,0.00017808,3]
[402450189,1768679474556,-1196.65,0.00017808,3]
[402450191,1768679474565,-761.06,0.00017808,3]
[402450193,1768679474575,-152.4444076,0.00017808,3]
[402450195,1768679474584,-500.0,0.00017808,3]
[402450197,1768679474594,-609.24,0.00017808,3]
[402450199,1768679474603,-500.0,0.00017808,3]
[402450201,1768679474612,-500.0,0.00017808,3]
[402450203,1768679474622,-901.7,0.00017808,3]
[402450205,1768679474631,-1140.39,0.00017808,3]
[402450207,1768679474640,-500.0,0.00017808,3]
[402450209,1768679474649,-500.0,0.00017808,3]
[402450211,1768679474658,-267.54932602,0.00017808,3]
[402450213,1768679474668,-500.0,0.00017808,3]
[402450215,1768679474677,-576.16,0.00017808,3]
[402450217,1768679474686,-511.75,0.00017808,3]
[402450219,1768679474696,-680.68,0.00017808,3]
[402450221,1768679474705,-500.0,0.00017808,3]
[402450223,1768679474714,-1548.48,0.00017808,3]
[402450225,1768679474722,-500.0,0.00017808,3]
[402450227,1768679474731,-734.72,0.00017808,3]
[402450229,1768679474740,-1329.58,0.00017808,3]
[402450231,1768679474750,-500.0,0.00017808,3]
[402450233,1768679474760,-614.82778926,0.00017808,3]
[402450235,1768679474768,-213.27350042,0.00017808,3]
[402450237,1768679474778,-1126.25,0.00017808,3]
[402450238,1768679474787,-539.06,0.00017808,3]
[402450240,1768679474796,-500.0,0.00017808,3]
[402450242,1768679474805,-701.32,0.00017808,3]
[402450244,1768679474814,-1192.97,0.00017808,3]
[402450246,1768679474823,-500.0,0.00017808,3]
[402450248,1768679474833,-727.1,0.00017808,3]
[402450250,1768679474843,-500.0,0.00017808,3]
[402450252,1768679474852,-781.78,0.00017808,3]
[402450254,1768679474862,-592.22,0.00017808,3]
[402450256,1768679474871,-500.0,0.00017808,3]
[402450258,1768679474881,-500.0,0.00017808,3]
[402450260,1768679474890,-537.93,0.00017808,3]
[402450262,1768679474899,-1258.39,0.00017808,3]
[402450264,1768679474909,-571.8,0.00017808,3]
[402450266,1768679474918,-605.99,0.00017808,3]
[402450268,1768679474928,-500.0,0.00017808,3]
[402450270,1768679474938,-1201.55,0.00017808,3]
[402450272,1768679474947,-500.0,0.00017808,3]
[402450274,1768679474957,-500.0,0.00017808,3]
[402450276,1768679474966,-500.0,0.00017808,3]
[402450278,1768679474975,-579.33,0.00017808,3]
[402450280,1768679474985,-500.0,0.00017808,3]
[402450282,1768679474994,-500.0,0.00017808,3]
[402450284,1768679475004,-500.0,0.00017808,3]
[402450286,1768679475013,-873.03,0.00017808,3]
[402450288,1768679475024,-500.0,0.00017808,3]
[402450290,1768679475036,-1442.06,0.00017808,3]
[402450292,1768679475045,-500.0,0.00017808,3]
[402450294,1768679475054,-829.64,0.00017808,3]
[402450296,1768679475063,-500.0,0.00017808,3]
[402450298,1768679475073,-1626.68,0.00017808,3]
[402450300,1768679475082,-500.0,0.00017808,3]
[402450302,1768679475091,-500.0,0.00017808,3]
[402450304,1768679475101,-535.99950992,0.00017808,3]
[402450306,1768679475110,-500.0,0.00017808,3]
[402450308,1768679475119,-500.0,0.00017808,3]
[402450310,1768679475130,-617.5,0.00017808,3]
[402450312,1768679475139,-500.0,0.00017808,3]
[402450314,1768679475148,-500.0,0.00017808,3]
[402450316,1768679475157,-500.0,0.00017808,3]
[402450318,1768679475167,-681.42,0.00017808,3]
[402450320,1768679475176,-562.7811494,0.00017808,3]
[402450323,1768679475189,-837.21,0.00017808,3]
[402450325,1768679475198,-500.0,0.00017808,3]
[402450327,1768679475208,-708.61,0.00017808,3]
[402450329,1768679475217,-500.0,0.00017808,3]
[402450331,1768679475227,-500.0,0.00017808,3]
[402450333,1768679475237,-576.70948824,0.00017808,3]
[402450335,1768679475247,-500.0,0.00017808,3]
[402450337,1768679475258,-500.0,0.00017808,3]
[402450339,1768679475267,-500.0,0.00017808,3]
[402450341,1768679475276,-511.63,0.00017808,3]
[402450343,1768679475286,-698.16,0.00017808,3]
[402450345,1768679475295,-500.0,0.00017808,3]
[402450346,1768679475303,-1168.98,0.00017808,3]
[402450348,1768679475313,-500.0,0.00017808,3]
[402450350,1768679475322,-500.0,0.00017808,3]
[402450353,1768679475332,-500.0,0.00017808,3]
[402450355,1768679475342,-822.62,0.00017808,3]
[402450357,1768679475351,-500.0,0.00017808,3]
[402450359,1768679475361,-832.03,0.00017808,3]
[402450361,1768679475370,-1486.24,0.00017808,3]
[402450363,1768679475379,-964.65,0.00017808,3]
[402450365,1768679475389,-525.2,0.00017808,3]
[402450367,1768679475398,-500.0,0.00017808,3]
[402450369,1768679475408,-502.19,0.00017808,3]
[402450371,1768679475417,-663.28,0.00017808,3]
[402450373,1768679475426,-848.63,0.00017808,3]
[402450375,1768679475435,-500.0,0.00017808,3]
[402450377,1768679475444,-500.0,0.00017808,3]
[402450379,1768679475454,-500.0,0.00017808,3]
[402450381,1768679475463,-500.0,0.00017808,3]
[402450383,1768679475473,-607.74969419,0.00017808,3]
[402450385,1768679475483,-1697.38,0.00017808,3]
[402450387,1768679475492,-837.92,0.00017808,3]
[402450389,1768679475502,-1459.89,0.00017808,3]
[402450391,1768679475512,-618.81,0.00017808,3]
[402450393,1768679475522,-500.0,0.00017808,3]
[402450395,1768679475531,-883.57,0.00017808,3]
[402450397,1768679475542,-857.65,0.00017808,3]
[402450399,1768679475552,-500.0,0.00017808,3]
[402450401,1768679475561,-500.0,0.00017808,3]
[402450403,1768679475571,-500.0,0.00017808,3]
[402450405,1768679475581,-500.0,0.00017808,3]
[402450407,1768679475591,-233.73958295,0.00017808,3]
[402450409,1768679475601,-500.0,0.00017808,3]
[402450411,1768679475611,-1535.26,0.00017808,3]
[402450413,1768679475620,-500.0,0.00017808,3]
[402450415,1768679475630,-987.57,0.00017808,3]
[402450417,1768679475639,-500.0,0.00017808,3]
[402450419,1768679475649,-1020.77,0.00017808,3]
[402450421,1768679475658,-500.0,0.00017808,3]
[402450423,1768679475668,-500.0,0.00017808,3]
[402450425,1768679475677,-361.65318307,0.00017808,3]
[402450427,1768679475686,-500.0,0.00017808,3]
[402450443,1768679475826,-500.0,0.00017808,3]
[402450445,1768679475836,-545.06,0.00017808,3]
[402450447,1768679475846,-954.48,0.00017808,3]
[402450449,1768679475855,-811.39,0.00017808,3]
[402450451,1768679475865,-185.72313516,0.00017808,3]
[402450453,1768679475874,-500.0,0.00017808,3]
[402450455,1768679475883,-500.0,0.00017808,3]
[402450457,1768679475893,-500.0,0.00017808,3]
[402450459,1768679475903,-737.68,0.00017808,3]
[402450461,1768679475913,-527.98947312,0.00017808,3]
[402450463,1768679475923,-836.86,0.00017808,3]
[402450465,1768679475933,-1249.71,0.00017808,3]
[402450467,1768679475943,-500.0,0.00017808,3]
[402450469,1768679475952,-1297.98,0.00017808,3]
[402450471,1768679475961,-1200.0,0.00017808,2]
[402450473,1768679475970,-286.8888167,0.00017808,3]
[402450475,1768679475980,-1182.44,0.00017808,3]
[402450477,1768679475989,-500.0,0.00017808,3]
[402450479,1768679475999,-500.0,0.00017808,3]
[402450481,1768679476008,-500.0,0.00017808,3]
[402450483,1768679476018,-509.11,0.00017808,3]
[402450485,1768679476028,-2261.74,0.00017808,3]
[402450487,1768679476038,-500.0,0.00017808,3]
[402450489,1768679476049,-1804.58,0.00017808,3]
[402450491,1768679476059,-500.0,0.00017808,3]
[402450493,1768679476069,-500.0,0.00017808,3]
[402450495,1768679476079,-500.0,0.00017808,3]
[402450497,1768679476089,-500.0,0.00017808,3]
[402450499,1768679476099,-500.0,0.00017808,3]
[402450501,1768679476109,-500.0,0.00017808,3]
[402450503,1768679476120,-534.03247418,0.00017808,3]
[402450505,1768679476131,-1161.49,0.00017808,3]
[402450508,1768679476141,-579.98,0.00017808,3]
[402450510,1768679476151,-500.0,0.00017808,3]
[402450512,1768679476160,-179.4,0.00017808,2]
[402450514,1768679476170,-646.86,0.00017808,3]
[402450516,1768679476179,-500.0,0.00017808,3]
[402450518,1768679476190,-500.0,0.00017808,3]
[402450520,1768679476200,-512.57740605,0.00017808,3]
[402450522,1768679476210,-971.6,0.00017808,3]
[402450524,1768679476221,-779.46,0.00017808,3]
[402450526,1768679476231,-779.74,0.00017808,3]
[402450528,1768679476242,-863.36,0.00017808,3]
[402450530,1768679476255,-549.39,0.00017808,3]
[402450532,1768679476265,-1141.78,0.00017808,3]
[402450534,1768679476274,-500.0,0.00017808,3]
[402450536,1768679476284,-500.0,0.00017808,3]
[402450538,1768679476294,-1435.49,0.00017808,3]
[402450540,1768679476304,-500.0,0.00017808,3]
[402450542,1768679476313,-794.82,0.00017808,3]
[402450544,1768679476325,-500.0,0.00017808,3]
[402450546,1768679476335,-500.0,0.00017808,3]
[402450548,1768679476344,-758.34,0.00017808,3]
[402450551,1768679476354,-500.0,0.00017808,3]
[402450553,1768679476363,-500.0,0.00017808,3]